[Event "*** Titled Tuesday Blitz"]
[Site "Chess.com"]
[Date "2020.05.26"]
[Round "3"]
[White "bascheyaro"]
[Black "Bigfish1995"]
[Result "1/2-1/2"]
[WhiteElo "2696"]
[BlackElo "3023"]
[TimeControl "180+1"]
[EndTime "10:31:08 PDT"]
[Termination "Game drawn by repetition"]

1. d4 {[%clk 0:03:00.9]} 1... Nf6 {[%clk 0:02:59.7]} 2. c4 {[%clk 0:03:01.3]}
2... e6 {[%clk 0:02:58.8]} 3. Nf3 {[%clk 0:03:01.8]} 3... a6 {[%clk 0:02:58]} 4.
Bg5 {[%clk 0:03:00.5]} 4... h6 {[%clk 0:02:53.6]} 5. Bh4 {[%clk 0:03:00.6]} 5...
c5 {[%clk 0:02:47.1]} 6. e3 {[%clk 0:03:00.8]} 6... cxd4 {[%clk 0:02:39]} 7.
exd4 {[%clk 0:03:01.2]} 7... b5 {[%clk 0:02:34.4]} 8. Nc3 {[%clk 0:03:00]} 8...
Bb4 {[%clk 0:02:24.3]} 9. Bxf6 {[%clk 0:02:45.7]} 9... Qxf6 {[%clk 0:02:18.7]}
10. cxb5 {[%clk 0:02:46.1]} 10... axb5 {[%clk 0:02:17.5]} 11. Bxb5 {[%clk
0:02:46.1]} 11... Qf5 {[%clk 0:02:11.1]} 12. Be2 {[%clk 0:02:42.7]} 12... O-O
{[%clk 0:01:57.9]} 13. O-O {[%clk 0:02:41.3]} 13... Bxc3 {[%clk 0:01:54.8]} 14.
bxc3 {[%clk 0:02:41.1]} 14... Ra3 {[%clk 0:01:55]} 15. Qb1 {[%clk 0:02:27.3]}
15... Qxb1 {[%clk 0:01:43.8]} 16. Rfxb1 {[%clk 0:02:27]} 16... Ba6 {[%clk
0:01:44.5]} 17. Bxa6 {[%clk 0:02:24.8]} 17... Nxa6 {[%clk 0:01:45.4]} 18. Rb3
{[%clk 0:02:25.2]} 18... Ra4 {[%clk 0:01:45.8]} 19. Nd2 {[%clk 0:02:23.8]} 19...
d5 {[%clk 0:01:44.1]} 20. Kf1 {[%clk 0:02:23.4]} 20... Ra8 {[%clk 0:01:41.5]}
21. Ke2 {[%clk 0:02:06.2]} 21... Nc7 {[%clk 0:01:40.3]} 22. Kd3 {[%clk
0:02:06.5]} 22... Ne8 {[%clk 0:01:36.1]} 23. a3 {[%clk 0:02:03.7]} 23... Nd6
{[%clk 0:01:35.6]} 24. Rab1 {[%clk 0:02:02.1]} 24... Rxa3 {[%clk 0:01:32.4]} 25.
Rxa3 {[%clk 0:02:02.3]} 25... Rxa3 {[%clk 0:01:33.3]} 26. Rb6 {[%clk 0:01:57.9]}
26... Nf5 {[%clk 0:01:32]} 27. g3 {[%clk 0:01:40.5]} 27... g5 {[%clk 0:01:31.1]}
28. Rb2 {[%clk 0:01:36.3]} 28... g4 {[%clk 0:01:26.9]} 29. f3 {[%clk 0:01:32.5]}
29... h5 {[%clk 0:01:25.2]} 30. fxg4 {[%clk 0:01:31.8]} 30... hxg4 {[%clk
0:01:25.5]} 31. Nf1 {[%clk 0:01:31.5]} 31... Nd6 {[%clk 0:01:24.8]} 32. Ne3
{[%clk 0:01:24.3]} 32... Ne4 {[%clk 0:01:24.9]} 33. Nxg4 {[%clk 0:01:22.2]}
33... Rxc3+ {[%clk 0:01:15.4]} 34. Ke2 {[%clk 0:01:22.4]} 34... Nd6 {[%clk
0:01:09]} 35. Ne5 {[%clk 0:01:19.7]} 35... Nf5 {[%clk 0:01:08]} 36. Nf3 {[%clk
0:01:17.9]} 36... Kg7 {[%clk 0:00:57.2]} 37. Rb7 {[%clk 0:01:07.2]} 37... Rc2+
{[%clk 0:00:47.6]} 38. Ke1 {[%clk 0:01:00.9]} 38... Kf8 {[%clk 0:00:36.6]} 39.
Ra7 {[%clk 0:00:59]} 39... Ke8 {[%clk 0:00:34.6]} 40. Ra8+ {[%clk 0:00:40.7]}
40... Ke7 {[%clk 0:00:34.5]} 41. Ra7+ {[%clk 0:00:41.1]} 41... Kf6 {[%clk
0:00:35]} 42. g4 {[%clk 0:00:38.9]} 42... Nd6 {[%clk 0:00:20.8]} 43. Ne5 {[%clk
0:00:39.1]} 43... Rxh2 {[%clk 0:00:18.7]} 44. g5+ {[%clk 0:00:39.5]} 44... Kf5
{[%clk 0:00:17.8]} 45. Rd7 {[%clk 0:00:37.4]} 45... Nc4 {[%clk 0:00:12.9]} 46.
Rxf7+ {[%clk 0:00:35.9]} 46... Ke4 {[%clk 0:00:13.4]} 47. g6 {[%clk 0:00:36.3]}
47... Nxe5 {[%clk 0:00:12.9]} 48. dxe5 {[%clk 0:00:32.4]} 48... Rg2 {[%clk
0:00:13.3]} 49. g7 {[%clk 0:00:27.7]} 49... Kxe5 {[%clk 0:00:13.3]} 50. Kf1
{[%clk 0:00:27.7]} 50... Rg5 {[%clk 0:00:13.3]} 51. Ke2 {[%clk 0:00:27.1]} 51...
Kd6 {[%clk 0:00:12.2]} 52. Kf3 {[%clk 0:00:22.5]} 52... e5 {[%clk 0:00:12.3]}
53. Ra7 {[%clk 0:00:22.4]} 53... Ke6 {[%clk 0:00:12.2]} 54. Rb7 {[%clk
0:00:20.9]} 54... Kf6 {[%clk 0:00:11.3]} 55. Rd7 {[%clk 0:00:20.9]} 55... d4
{[%clk 0:00:09.4]} 56. Rd6+ {[%clk 0:00:16]} 56... Kf5 {[%clk 0:00:08]} 57. Rd7
{[%clk 0:00:16]} 57... Ke6 {[%clk 0:00:08.2]} 58. Ra7 {[%clk 0:00:15.3]} 58...
Kf6 {[%clk 0:00:08.7]} 59. Ra6+ {[%clk 0:00:07.6]} 59... Kxg7 {[%clk 0:00:08.3]}
60. Ke4 {[%clk 0:00:08]} 60... Kf7 {[%clk 0:00:08.8]} 61. Rb6 {[%clk 0:00:07.9]}
61... Ke7 {[%clk 0:00:08.8]} 62. Ra6 {[%clk 0:00:08.3]} 62... Kd7 {[%clk
0:00:09.2]} 63. Rb6 {[%clk 0:00:08.8]} 63... Rh5 {[%clk 0:00:09.2]} 64. Ra6
{[%clk 0:00:09.1]} 64... Ke7 {[%clk 0:00:09.6]} 65. Rb6 {[%clk 0:00:09.4]} 65...
Kf7 {[%clk 0:00:09.8]} 66. Ra6 {[%clk 0:00:09.8]} 66... Rg5 {[%clk 0:00:10.1]}
67. Rb6 {[%clk 0:00:10.1]} 67... Rg6 {[%clk 0:00:09.9]} 68. Rb5 {[%clk
0:00:05.4]} 68... Re6 {[%clk 0:00:09.5]} 69. Rb1 {[%clk 0:00:04.6]} 69... Ke7
{[%clk 0:00:07.5]} 70. Rb7+ {[%clk 0:00:04.3]} 70... Kf6 {[%clk 0:00:08]} 71.
Rb5 {[%clk 0:00:04.1]} 71... Re7 {[%clk 0:00:04.5]} 72. Rb6+ {[%clk 0:00:04.4]}
72... Kf7 {[%clk 0:00:05.1]} 73. Rb3 {[%clk 0:00:04.2]} 73... Kg6 {[%clk
0:00:05.2]} 74. Rb6+ {[%clk 0:00:04.2]} 74... Kg5 {[%clk 0:00:05.3]} 75. Rb8
{[%clk 0:00:04.8]} 75... Kf6 {[%clk 0:00:05.5]} 76. Rb6+ {[%clk 0:00:04.5]}
76... Re6 {[%clk 0:00:06.1]} 77. Rb5 {[%clk 0:00:04.8]} 77... Re8 {[%clk
0:00:03.9]} 78. Rb6+ {[%clk 0:00:05]} 78... Kf7 {[%clk 0:00:04.4]} 79. Rb7+
{[%clk 0:00:05.3]} 79... Kg6 {[%clk 0:00:05]} 80. Rb6+ {[%clk 0:00:05.7]} 80...
Kg5 {[%clk 0:00:05.6]} 81. Rb7 {[%clk 0:00:06.2]} 81... Kg4 {[%clk 0:00:06.1]}
82. Rg7+ {[%clk 0:00:06.1]} 82... Kh3 {[%clk 0:00:06.6]} 83. Rg1 {[%clk
0:00:06.5]} 83... Kh2 {[%clk 0:00:06.6]} 84. Rg7 {[%clk 0:00:06.2]} 84... Re6
{[%clk 0:00:06.7]} 85. Rg5 {[%clk 0:00:05.9]} 85... Rd6 {[%clk 0:00:06.2]} 86.
Kf3 {[%clk 0:00:02.1]} 86... d3 {[%clk 0:00:05.3]} 87. Kf2 {[%clk 0:00:02.6]}
87... Rf6+ {[%clk 0:00:05.4]} 88. Ke3 {[%clk 0:00:02.8]} 88... Rd6 {[%clk
0:00:05.4]} 89. Kd2 {[%clk 0:00:03]} 89... e4 {[%clk 0:00:05.8]} 90. Re5 {[%clk
0:00:03.3]} 90... Rd4 {[%clk 0:00:06.3]} 91. Rg5 {[%clk 0:00:02.7]} 91... Kh3
{[%clk 0:00:06.5]} 92. Ke3 {[%clk 0:00:03.1]} 92... d2 {[%clk 0:00:06.6]} 93.
Kxd4 {[%clk 0:00:03.7]} 93... d1=Q+ {[%clk 0:00:06.8]} 94. Kxe4 {[%clk
0:00:04.6]} 94... Qe2+ {[%clk 0:00:07.2]} 95. Kf5 {[%clk 0:00:05]} 95... Qf3+
{[%clk 0:00:06.8]} 96. Kg6 {[%clk 0:00:05.9]} 96... Kh4 {[%clk 0:00:07.3]} 97.
Rf5 {[%clk 0:00:06.3]} 97... Qc6+ {[%clk 0:00:07.3]} 98. Kf7 {[%clk 0:00:06.9]}
98... Kg4 {[%clk 0:00:07]} 99. Rf6 {[%clk 0:00:07.8]} 99... Qd7+ {[%clk
0:00:07.1]} 100. Kg6 {[%clk 0:00:08.7]} 100... Qe7 {[%clk 0:00:07.4]} 101. Rf7
{[%clk 0:00:08.9]} 101... Qe5 {[%clk 0:00:07.6]} 102. Rf6 {[%clk 0:00:08.4]}
102... Qh5+ {[%clk 0:00:07.7]} 103. Kg7 {[%clk 0:00:08.3]} 103... Kg5 {[%clk
0:00:08.3]} 104. Rf7 {[%clk 0:00:08.7]} 104... Qe2 {[%clk 0:00:07.8]} 105. Kf8
{[%clk 0:00:08.3]} 105... Qe6 {[%clk 0:00:07]} 106. Rg7+ {[%clk 0:00:08.5]}
106... Kh4 {[%clk 0:00:03.9]} 107. Rh7+ {[%clk 0:00:08.8]} 107... Kg3 {[%clk
0:00:04.2]} 108. Rg7+ {[%clk 0:00:09.4]} 108... Kh3 {[%clk 0:00:04.8]} 109. Rh7+
{[%clk 0:00:09.7]} 109... Kg4 {[%clk 0:00:05.3]} 110. Rg7+ {[%clk 0:00:10.2]}
110... Kh5 {[%clk 0:00:05.9]} 111. Rh7+ {[%clk 0:00:10.7]} 111... Kg5 {[%clk
0:00:06.4]} 112. Rg7+ {[%clk 0:00:11.1]} 112... Kf5 {[%clk 0:00:06.7]} 113. Rf7+
{[%clk 0:00:10.9]} 113... Kg6 {[%clk 0:00:07.2]} 114. Rg7+ {[%clk 0:00:11.3]}
114... Kh6 {[%clk 0:00:07.5]} 115. Rh7+ {[%clk 0:00:11.7]} 115... Kg5 {[%clk
0:00:07.5]} 116. Rg7+ {[%clk 0:00:12.2]} 1/2-1/2

[Event "*** Titled Tuesday Blitz"]
[Site "Chess.com"]
[Date "2020.05.26"]
[Round "4"]
[White "InitiatingASC"]
[Black "swisspower96"]
[Result "0-1"]
[WhiteElo "2391"]
[BlackElo "2597"]
[TimeControl "180+1"]
[EndTime "10:35:21 PDT"]
[Termination "swisspower96 won by resignation"]

1. Nf3 {[%clk 0:03:00.9]} 1... d5 {[%clk 0:02:59.1]} 2. b3 {[%clk 0:03:01.2]}
2... Bf5 {[%clk 0:02:57.9]} 3. Bb2 {[%clk 0:03:01.4]} 3... Nf6 {[%clk
0:02:58.2]} 4. e3 {[%clk 0:03:01.5]} 4... e6 {[%clk 0:02:58.6]} 5. c4 {[%clk
0:03:01.6]} 5... h6 {[%clk 0:02:54.3]} 6. cxd5 {[%clk 0:03:01.4]} 6... exd5
{[%clk 0:02:54.4]} 7. Be2 {[%clk 0:03:01.4]} 7... Be7 {[%clk 0:02:54.1]} 8. O-O
{[%clk 0:03:01.9]} 8... O-O {[%clk 0:02:54.4]} 9. d3 {[%clk 0:03:02.4]} 9... a5
{[%clk 0:02:53.3]} 10. a3 {[%clk 0:03:02.2]} 10... Nbd7 {[%clk 0:02:49.3]} 11.
Nbd2 {[%clk 0:03:01.7]} 11... c5 {[%clk 0:02:46.1]} 12. Qc2 {[%clk 0:02:47.7]}
12... a4 {[%clk 0:02:41]} 13. bxa4 {[%clk 0:02:45.6]} 13... Nb6 {[%clk
0:02:40.8]} 14. Rab1 {[%clk 0:02:26.5]} 14... Nxa4 {[%clk 0:02:39.7]} 15. Bxf6
{[%clk 0:02:20.2]} 15... Bxf6 {[%clk 0:02:39.6]} 16. Rxb7 {[%clk 0:02:20.6]}
16... Nc3 {[%clk 0:02:32.3]} 17. Re1 {[%clk 0:02:08.6]} 17... Rxa3 {[%clk
0:02:31.8]} 18. e4 {[%clk 0:02:02.2]} 18... Ra2 {[%clk 0:02:10]} 19. Qb3 {[%clk
0:01:50.5]} 19... dxe4 {[%clk 0:02:05.8]} 20. dxe4 {[%clk 0:01:50.7]} 20... Rxd2
{[%clk 0:02:02.5]} 21. Nxd2 {[%clk 0:01:36.9]} 21... Qxd2 {[%clk 0:02:01.7]} 22.
Kf1 {[%clk 0:01:31.3]} 22... Bxe4 {[%clk 0:01:54.2]} 23. Bc4 {[%clk 0:01:17.3]}
23... Bxb7 {[%clk 0:01:48.4]} 0-1

[Event "*** Titled Tuesday Blitz"]
[Site "Chess.com"]
[Date "2020.05.26"]
[Round "4"]
[White "Shubinkirill2003"]
[Black "GM4life"]
[Result "1-0"]
[WhiteElo "2607"]
[BlackElo "2378"]
[TimeControl "180+1"]
[EndTime "10:35:27 PDT"]
[Termination "Shubinkirill2003 won by checkmate"]

1. e4 {[%clk 0:03:00.9]} 1... c5 {[%clk 0:02:58.6]} 2. Nf3 {[%clk 0:03:00.5]}
2... d6 {[%clk 0:02:58.7]} 3. d4 {[%clk 0:02:57.9]} 3... cxd4 {[%clk 0:02:59.6]}
4. Qxd4 {[%clk 0:02:57.9]} 4... Nc6 {[%clk 0:02:58.7]} 5. Bb5 {[%clk 0:02:58.1]}
5... Bd7 {[%clk 0:02:59.3]} 6. Qd3 {[%clk 0:02:58.1]} 6... Nf6 {[%clk
0:02:57.8]} 7. c4 {[%clk 0:02:57.7]} 7... g6 {[%clk 0:02:56.9]} 8. Nc3 {[%clk
0:02:57.1]} 8... Bg7 {[%clk 0:02:57.4]} 9. h3 {[%clk 0:02:56.5]} 9... O-O {[%clk
0:02:57.8]} 10. O-O {[%clk 0:02:56.4]} 10... a6 {[%clk 0:02:51.9]} 11. Bxc6
{[%clk 0:02:56.6]} 11... Bxc6 {[%clk 0:02:52.4]} 12. Nd4 {[%clk 0:02:55.3]}
12... Rc8 {[%clk 0:02:52.5]} 13. Be3 {[%clk 0:02:54.5]} 13... Nd7 {[%clk
0:02:50.7]} 14. Rac1 {[%clk 0:02:54.5]} 14... Qa5 {[%clk 0:02:43]} 15. Rfd1
{[%clk 0:02:47.6]} 15... Qb4 {[%clk 0:02:34.4]} 16. b3 {[%clk 0:02:30.3]} 16...
Nc5 {[%clk 0:01:42.8]} 17. Qb1 {[%clk 0:02:26.3]} 17... b5 {[%clk 0:01:40.5]}
18. Nxc6 {[%clk 0:02:24.2]} 18... Rxc6 {[%clk 0:01:40.3]} 19. Nd5 {[%clk
0:02:24.7]} 19... Qa3 {[%clk 0:01:30.2]} 20. Nxe7+ {[%clk 0:02:23.4]} 20... Kh8
{[%clk 0:01:30.5]} 21. Nxc6 {[%clk 0:02:22.8]} 21... Re8 {[%clk 0:01:23.3]} 22.
cxb5 {[%clk 0:02:16.2]} 22... axb5 {[%clk 0:01:21.8]} 23. e5 {[%clk 0:02:15.6]}
23... Bxe5 {[%clk 0:01:16.6]} 24. Nxe5 {[%clk 0:02:14.8]} 24... Rxe5 {[%clk
0:01:14.7]} 25. Bd4 {[%clk 0:02:14.3]} 25... Ne6 {[%clk 0:01:13.6]} 26. Bxe5+
{[%clk 0:02:14]} 26... dxe5 {[%clk 0:01:14.5]} 27. Qe4 {[%clk 0:02:08.7]} 27...
f6 {[%clk 0:01:13.8]} 28. Rc8+ {[%clk 0:02:02.8]} 28... Kg7 {[%clk 0:01:13.5]}
29. Rd7+ {[%clk 0:02:02]} 29... Kh6 {[%clk 0:01:09.8]} 30. Qh4# {[%clk
0:02:01.8]} 1-0

[Event "*** Titled Tuesday Blitz"]
[Site "Chess.com"]
[Date "2020.05.26"]
[Round "4"]
[White "paperotto610"]
[Black "gmelviro"]
[Result "1-0"]
[WhiteElo "2293"]
[BlackElo "2073"]
[TimeControl "180+1"]
[EndTime "10:35:28 PDT"]
[Termination "paperotto610 won by resignation"]

1. Nf3 {[%clk 0:03:00.9]} 1... f5 {[%clk 0:02:59.4]} 2. b3 {[%clk 0:03:00.7]}
2... Nf6 {[%clk 0:02:58.6]} 3. Bb2 {[%clk 0:03:01.6]} 3... e6 {[%clk 0:02:58.9]}
4. c4 {[%clk 0:03:01.4]} 4... c6 {[%clk 0:02:58.3]} 5. g3 {[%clk 0:03:02.3]}
5... d5 {[%clk 0:02:58.5]} 6. Bg2 {[%clk 0:03:03]} 6... Bd6 {[%clk 0:02:58.8]}
7. O-O {[%clk 0:03:03.9]} 7... Qe7 {[%clk 0:02:58.7]} 8. d3 {[%clk 0:03:04.5]}
8... O-O {[%clk 0:02:58]} 9. Nbd2 {[%clk 0:03:05.1]} 9... dxc4 {[%clk
0:02:57.6]} 10. Nxc4 {[%clk 0:03:03.8]} 10... Bc7 {[%clk 0:02:57.1]} 11. Nce5
{[%clk 0:03:02.6]} 11... Nbd7 {[%clk 0:02:56.3]} 12. Qd2 {[%clk 0:03:01.9]}
12... Nxe5 {[%clk 0:02:51.2]} 13. Nxe5 {[%clk 0:03:02.8]} 13... Nd7 {[%clk
0:02:49.2]} 14. Nxd7 {[%clk 0:02:57.9]} 14... Bxd7 {[%clk 0:02:49]} 15. d4
{[%clk 0:02:51.8]} 15... Rad8 {[%clk 0:02:46.3]} 16. Qc3 {[%clk 0:02:48.4]}
16... Be8 {[%clk 0:02:38.2]} 17. Rac1 {[%clk 0:02:48.2]} 17... Bb6 {[%clk
0:02:30.5]} 18. e3 {[%clk 0:02:42.6]} 18... Bh5 {[%clk 0:02:27.7]} 19. a4 {[%clk
0:02:38.3]} 19... a6 {[%clk 0:02:22.6]} 20. b4 {[%clk 0:02:36.3]} 20... Rc8
{[%clk 0:01:58.9]} 21. Qb3 {[%clk 0:02:25.9]} 21... Qf7 {[%clk 0:01:52]} 22. b5
{[%clk 0:02:23.7]} 22... axb5 {[%clk 0:01:44.3]} 23. axb5 {[%clk 0:02:24.6]}
23... Be2 {[%clk 0:01:44.4]} 24. bxc6 {[%clk 0:02:19.1]} 24... Bxf1 {[%clk
0:01:41.6]} 25. Kxf1 {[%clk 0:02:15]} 25... Bc7 {[%clk 0:01:32.3]} 26. cxb7
{[%clk 0:02:14.1]} 26... Rb8 {[%clk 0:01:31]} 27. d5 {[%clk 0:02:08.1]} 27... e5
{[%clk 0:01:19.3]} 28. Rxc7 {[%clk 0:02:03.3]} 28... Qxc7 {[%clk 0:01:18.5]} 29.
d6+ {[%clk 0:02:03.4]} 29... Qf7 {[%clk 0:01:18.9]} 30. Bd5 {[%clk 0:02:04]} 1-0

[Event "*** Titled Tuesday Blitz"]
[Site "Chess.com"]
[Date "2020.05.26"]
[Round "4"]
[White "Misha_Bilous"]
[Black "Manukyan_Artak"]
[Result "1-0"]
[WhiteElo "2459"]
[BlackElo "2282"]
[TimeControl "180+1"]
[EndTime "10:35:30 PDT"]
[Termination "Misha_Bilous won by resignation"]

1. d4 {[%clk 0:02:22.2]} 1... Nf6 {[%clk 0:02:58.6]} 2. c4 {[%clk 0:02:22.6]}
2... e6 {[%clk 0:02:59]} 3. Nf3 {[%clk 0:02:22.7]} 3... b6 {[%clk 0:02:58.2]} 4.
g3 {[%clk 0:02:22.8]} 4... Bb7 {[%clk 0:02:58.4]} 5. Bg2 {[%clk 0:02:23.2]} 5...
c5 {[%clk 0:02:59.3]} 6. d5 {[%clk 0:02:23.2]} 6... exd5 {[%clk 0:02:59.4]} 7.
Nh4 {[%clk 0:02:23.4]} 7... g6 {[%clk 0:02:59.6]} 8. Nc3 {[%clk 0:02:22.5]} 8...
Bg7 {[%clk 0:02:59.7]} 9. O-O {[%clk 0:02:17.9]} 9... O-O {[%clk 0:02:59.5]} 10.
Bg5 {[%clk 0:02:18.4]} 10... h6 {[%clk 0:02:54.9]} 11. Bxf6 {[%clk 0:02:18.8]}
11... Bxf6 {[%clk 0:02:55.2]} 12. Nxg6 {[%clk 0:02:19.1]} 12... Re8 {[%clk
0:02:26.9]} 13. Nf4 {[%clk 0:02:13.4]} 13... Bxc3 {[%clk 0:02:18.2]} 14. bxc3
{[%clk 0:02:12.7]} 14... d6 {[%clk 0:02:13]} 15. Bxd5 {[%clk 0:02:08.5]} 15...
Nc6 {[%clk 0:02:07.9]} 16. e4 {[%clk 0:01:54.5]} 16... Na5 {[%clk 0:02:06.9]}
17. Qh5 {[%clk 0:01:43.8]} 17... Qf6 {[%clk 0:02:05.5]} 18. Rad1 {[%clk
0:01:38.6]} 18... Re5 {[%clk 0:02:03.3]} 19. Qh3 {[%clk 0:01:25.6]} 19... Rg5
{[%clk 0:01:59.8]} 20. Bxb7 {[%clk 0:01:17.1]} 20... Nxb7 {[%clk 0:01:59.1]} 21.
Nd5 {[%clk 0:01:17.7]} 21... Qg7 {[%clk 0:01:52.7]} 22. f4 {[%clk 0:01:11.4]}
22... Rg4 {[%clk 0:01:47.4]} 23. Qxg4 {[%clk 0:01:09.9]} 1-0

[Event "*** Titled Tuesday Blitz"]
[Site "Chess.com"]
[Date "2020.05.26"]
[Round "4"]
[White "TregubovP"]
[Black "Schachmalanders"]
[Result "1-0"]
[WhiteElo "2576"]
[BlackElo "2311"]
[TimeControl "180+1"]
[EndTime "10:35:34 PDT"]
[Termination "TregubovP won by resignation"]

1. e4 {[%clk 0:03:00.9]} 1... c5 {[%clk 0:02:59.7]} 2. Nf3 {[%clk 0:02:57.3]}
2... d6 {[%clk 0:02:59.8]} 3. c3 {[%clk 0:02:56]} 3... Nf6 {[%clk 0:02:56.5]} 4.
Be2 {[%clk 0:02:56.1]} 4... Nc6 {[%clk 0:02:54.3]} 5. d4 {[%clk 0:02:54.7]} 5...
cxd4 {[%clk 0:02:48.6]} 6. cxd4 {[%clk 0:02:54.7]} 6... d5 {[%clk 0:02:48.9]} 7.
e5 {[%clk 0:02:49.3]} 7... Ne4 {[%clk 0:02:49]} 8. O-O {[%clk 0:02:46.6]} 8...
e6 {[%clk 0:02:37.7]} 9. Nc3 {[%clk 0:02:44.3]} 9... Be7 {[%clk 0:02:34.8]} 10.
Bd3 {[%clk 0:02:42.9]} 10... Nxc3 {[%clk 0:02:27.3]} 11. bxc3 {[%clk 0:02:41.3]}
11... O-O {[%clk 0:02:27.3]} 12. Qc2 {[%clk 0:02:34.3]} 12... g6 {[%clk
0:02:26.1]} 13. Bh6 {[%clk 0:02:29.8]} 13... Re8 {[%clk 0:02:25.5]} 14. Qd2
{[%clk 0:02:28.1]} 14... b6 {[%clk 0:02:13.1]} 15. Qf4 {[%clk 0:02:26.3]} 15...
Bf8 {[%clk 0:02:07.9]} 16. Bxf8 {[%clk 0:02:06]} 16... Rxf8 {[%clk 0:02:06.6]}
17. Qh6 {[%clk 0:02:06]} 17... f5 {[%clk 0:02:01]} 18. exf6 {[%clk 0:02:06]}
18... Qxf6 {[%clk 0:02:00]} 19. Rae1 {[%clk 0:02:03.7]} 19... Bd7 {[%clk
0:01:59.3]} 20. Ng5 {[%clk 0:02:01.9]} 20... Qe7 {[%clk 0:01:52.4]} 21. Re3
{[%clk 0:02:00.3]} 21... Rae8 {[%clk 0:01:40]} 22. Rh3 {[%clk 0:01:53.2]} 22...
Rf7 {[%clk 0:01:37.8]} 23. Bxg6 {[%clk 0:01:50.2]} 23... Rg7 {[%clk 0:01:21.7]}
24. Bxh7+ {[%clk 0:01:46.7]} 24... Kf8 {[%clk 0:01:18.5]} 25. Rf3+ {[%clk
0:01:44.4]} 1-0

[Event "*** Titled Tuesday Blitz"]
[Site "Chess.com"]
[Date "2020.05.26"]
[Round "4"]
[White "KacperPolOK"]
[Black "AlexTriapishko"]
[Result "0-1"]
[WhiteElo "2417"]
[BlackElo "2730"]
[TimeControl "180+1"]
[EndTime "10:35:42 PDT"]
[Termination "AlexTriapishko won by resignation"]

1. e4 {[%clk 0:03:00]} 1... c6 {[%clk 0:02:51.2]} 2. d4 {[%clk 0:02:56.8]} 2...
d5 {[%clk 0:02:52.1]} 3. Nc3 {[%clk 0:02:57.2]} 3... dxe4 {[%clk 0:02:52.1]} 4.
Nxe4 {[%clk 0:02:57.7]} 4... Bf5 {[%clk 0:02:52.8]} 5. Ng3 {[%clk 0:02:56.1]}
5... Bg6 {[%clk 0:02:53.2]} 6. h4 {[%clk 0:02:56.6]} 6... h6 {[%clk 0:02:53.6]}
7. Nf3 {[%clk 0:02:55.8]} 7... e6 {[%clk 0:02:54.1]} 8. h5 {[%clk 0:02:54.2]}
8... Bh7 {[%clk 0:02:54.6]} 9. Bd3 {[%clk 0:02:54.8]} 9... Bxd3 {[%clk 0:02:55]}
10. Qxd3 {[%clk 0:02:54.6]} 10... Nf6 {[%clk 0:02:55.9]} 11. Bd2 {[%clk
0:02:54]} 11... Be7 {[%clk 0:02:55.8]} 12. O-O-O {[%clk 0:02:53.3]} 12... O-O
{[%clk 0:02:56.1]} 13. Nf1 {[%clk 0:02:52.9]} 13... c5 {[%clk 0:02:52.7]} 14.
Ne3 {[%clk 0:02:50.8]} 14... Nc6 {[%clk 0:02:38.9]} 15. dxc5 {[%clk 0:02:33.1]}
15... Qxd3 {[%clk 0:02:33.8]} 16. cxd3 {[%clk 0:02:31.3]} 16... Bxc5 {[%clk
0:02:34.7]} 17. Bc3 {[%clk 0:02:28.6]} 17... Rfd8 {[%clk 0:02:24.7]} 18. a3
{[%clk 0:02:28.5]} 18... Bxe3+ {[%clk 0:02:19.6]} 19. fxe3 {[%clk 0:02:27.4]}
19... Ng4 {[%clk 0:02:20.5]} 20. Rd2 {[%clk 0:01:50.8]} 20... Nxe3 {[%clk
0:02:15.9]} 21. Rh3 {[%clk 0:01:46.8]} 21... Nf5 {[%clk 0:02:10.9]} 22. g4
{[%clk 0:01:45.3]} 22... Nfd4 {[%clk 0:02:10.9]} 23. Rg3 {[%clk 0:01:34.8]}
23... Nb3+ {[%clk 0:02:07.8]} 24. Kc2 {[%clk 0:01:32.4]} 24... Nxd2 {[%clk
0:02:08.7]} 25. Kxd2 {[%clk 0:01:32.2]} 25... f6 {[%clk 0:02:09.2]} 26. Nh4
{[%clk 0:01:28.7]} 26... Rd5 {[%clk 0:02:05.1]} 27. Re3 {[%clk 0:01:26.2]} 27...
Kf7 {[%clk 0:02:03.5]} 28. Ng2 {[%clk 0:01:25.5]} 28... Rad8 {[%clk 0:02:03.5]}
29. Nf4 {[%clk 0:01:22.9]} 29... R5d6 {[%clk 0:02:03.9]} 30. Kc2 {[%clk
0:01:22.7]} 30... e5 {[%clk 0:02:03.7]} 31. Ne2 {[%clk 0:01:21.2]} 31... Ne7
{[%clk 0:02:02.1]} 32. Ng3 {[%clk 0:01:19.9]} 32... Nd5 {[%clk 0:02:02.6]} 33.
Re4 {[%clk 0:01:20.1]} 33... Nxc3 {[%clk 0:02:02.5]} 34. bxc3 {[%clk 0:01:21]}
34... Rxd3 {[%clk 0:02:03]} 0-1

[Event "*** Titled Tuesday Blitz"]
[Site "Chess.com"]
[Date "2020.05.26"]
[Round "4"]
[White "farzadbfd"]
[Black "Gyapiking"]
[Result "0-1"]
[WhiteElo "2737"]
[BlackElo "2538"]
[TimeControl "180+1"]
[EndTime "10:35:58 PDT"]
[Termination "Gyapiking won by resignation"]

1. e4 {[%clk 0:03:00.9]} 1... d5 {[%clk 0:02:57.2]} 2. exd5 {[%clk 0:03:00.8]}
2... Qxd5 {[%clk 0:02:57.2]} 3. Nc3 {[%clk 0:03:01.7]} 3... Qd6 {[%clk
0:02:57.5]} 4. d4 {[%clk 0:03:01.8]} 4... Nf6 {[%clk 0:02:57.5]} 5. Nge2 {[%clk
0:03:02.4]} 5... Bg4 {[%clk 0:02:54]} 6. f3 {[%clk 0:03:02.4]} 6... Bh5 {[%clk
0:02:53.4]} 7. Bf4 {[%clk 0:03:02.2]} 7... Qd8 {[%clk 0:02:53.3]} 8. g4 {[%clk
0:02:40.2]} 8... Bg6 {[%clk 0:02:51.5]} 9. Bg2 {[%clk 0:02:40.7]} 9... e6 {[%clk
0:02:50.7]} 10. h4 {[%clk 0:02:34.2]} 10... h5 {[%clk 0:02:49.1]} 11. g5 {[%clk
0:02:34.2]} 11... Nd5 {[%clk 0:02:48.1]} 12. Nxd5 {[%clk 0:02:34.7]} 12... exd5
{[%clk 0:02:46.6]} 13. Qd2 {[%clk 0:02:25.8]} 13... Nc6 {[%clk 0:02:43.1]} 14.
c3 {[%clk 0:01:56.2]} 14... Bd6 {[%clk 0:02:40.4]} 15. O-O-O {[%clk 0:01:49.3]}
15... O-O {[%clk 0:02:39.4]} 16. Rde1 {[%clk 0:01:37.3]} 16... Na5 {[%clk
0:02:38.6]} 17. Bxd6 {[%clk 0:01:08.7]} 17... Nc4 {[%clk 0:02:31.3]} 18. Qf4
{[%clk 0:00:37.3]} 18... cxd6 {[%clk 0:02:30.5]} 19. Bh3 {[%clk 0:00:37.6]}
19... Qa5 {[%clk 0:02:25.6]} 20. a3 {[%clk 0:00:18.3]} 20... Nxa3 {[%clk
0:02:22]} 21. Bf5 {[%clk 0:00:15.5]} 21... Nc4 {[%clk 0:02:18.9]} 22. Kc2 {[%clk
0:00:11.6]} 22... Bxf5+ {[%clk 0:02:15.8]} 23. Qxf5 {[%clk 0:00:12.5]} 23...
Ne3+ {[%clk 0:02:15.8]} 0-1